[Event "Live Chess"]
[Site "Chess.com"]
[Date "2024.06.02"]
[Round "-"]
[White "AndrewBak1"]
[Black "Dhaydon19"]
[Result "0-1"]
[WhiteElo "1884"]
[BlackElo "2651"]
[TimeControl "300"]
[EndTime "0:47:28 PDT"]
[Termination "Dhaydon19 won by resignation"]

1. e4 {[%clk 0:04:58]} 1... e6 {[%clk 0:04:58.8]} 2. d4 {[%clk 0:04:56.7]} 2...
d5 {[%clk 0:04:58.4]} 3. Nc3 {[%clk 0:04:56.1]} 3... dxe4 {[%clk 0:04:56.6]} 4.
Nxe4 {[%clk 0:04:56]} 4... Nd7 {[%clk 0:04:55.3]} 5. Bd3 {[%clk 0:04:54.9]} 5...
Ngf6 {[%clk 0:04:54.7]} 6. c3 {[%clk 0:04:53.6]} 6... Nxe4 {[%clk 0:04:54]} 7.
Bxe4 {[%clk 0:04:53.5]} 7... Nf6 {[%clk 0:04:53.4]} 8. Bc2 {[%clk 0:04:53.1]}
8... Bd7 {[%clk 0:04:51.6]} 9. Nf3 {[%clk 0:04:50.9]} 9... Bc6 {[%clk 0:04:51]}
10. Bg5 {[%clk 0:04:48.8]} 10... h6 {[%clk 0:04:48.5]} 11. Bh4 {[%clk
0:04:47.3]} 11... Be7 {[%clk 0:04:46.6]} 12. O-O {[%clk 0:04:45.2]} 12... Qd5
{[%clk 0:04:44]} 13. Re1 {[%clk 0:04:39.8]} 13... Qh5 {[%clk 0:04:40.4]} 14.
Bxf6 {[%clk 0:04:29.5]} 14... gxf6 {[%clk 0:04:37.2]} 15. Be4 {[%clk 0:04:26.8]}
15... Bxe4 {[%clk 0:04:35.1]} 16. Rxe4 {[%clk 0:04:26.7]} 16... f5 {[%clk
0:04:33.4]} 17. Re1 {[%clk 0:04:18.8]} 17... Rg8 {[%clk 0:04:32.2]} 18. Ne5
{[%clk 0:04:17.1]} 18... Qxd1 {[%clk 0:04:30.6]} 19. Raxd1 {[%clk 0:04:15.7]}
19... Bd6 {[%clk 0:04:29.2]} 20. d5 {[%clk 0:04:11]} 20... Ke7 {[%clk 0:04:27]}
21. Nf3 {[%clk 0:03:18]} 21... Kf6 {[%clk 0:04:15.5]} 22. c4 {[%clk 0:03:04.5]}
22... a6 {[%clk 0:04:12.5]} 23. a3 {[%clk 0:03:03.4]} 23... e5 {[%clk
0:04:08.1]} 24. b4 {[%clk 0:03:02.1]} 24... b6 {[%clk 0:04:03.5]} 25. Rc1 {[%clk
0:02:58.4]} 25... e4 {[%clk 0:03:56.8]} 26. Nd4 {[%clk 0:02:56.1]} 26... a5
{[%clk 0:03:49]} 27. Nc6 {[%clk 0:02:51.6]} 27... axb4 {[%clk 0:03:47.8]} 28.
axb4 {[%clk 0:02:51.2]} 28... Ra4 {[%clk 0:03:40]} 29. c5 {[%clk 0:02:47.8]}
29... Bf4 {[%clk 0:03:38.1]} 30. Ra1 {[%clk 0:02:34.3]} 30... Rxa1 {[%clk
0:03:31.5]} 31. Rxa1 {[%clk 0:02:31]} 31... bxc5 {[%clk 0:03:30.6]} 32. bxc5
{[%clk 0:02:29.5]} 32... Rc8 {[%clk 0:03:23.3]} 33. Ra6 {[%clk 0:02:14.7]} 33...
Kg7 {[%clk 0:03:20.2]} 34. g3 {[%clk 0:02:09.2]} 34... Bg5 {[%clk 0:03:11.7]}
35. h4 {[%clk 0:02:01.9]} 35... Bf6 {[%clk 0:03:10.7]} 36. Kf1 {[%clk
0:01:43.3]} 36... Kf8 {[%clk 0:03:07.6]} 37. Na7 {[%clk 0:01:38.5]} 37... Ra8
{[%clk 0:03:06.3]} 38. Rxf6 {[%clk 0:01:36.8]} 38... Rxa7 {[%clk 0:03:05.5]} 39.
Rxh6 {[%clk 0:01:32]} 39... Ke7 {[%clk 0:03:01.3]} 40. d6+ {[%clk 0:01:22.8]}
40... cxd6 {[%clk 0:03:00]} 41. cxd6+ {[%clk 0:01:22.7]} 41... Kf8 {[%clk
0:02:53.8]} 42. Rf6 {[%clk 0:01:09.9]} 42... Ra5 {[%clk 0:02:51.7]} 43. Ke2
{[%clk 0:00:58.8]} 43... Rd5 {[%clk 0:02:50.5]} 44. Ke3 {[%clk 0:00:57.8]} 44...
Kg7 {[%clk 0:02:48]} 45. Rxf5 {[%clk 0:00:42.7]} 45... Rxf5 {[%clk 0:02:45.8]}
46. Kxe4 {[%clk 0:00:41.7]} 46... Rxf2 {[%clk 0:02:44.7]} 47. g4 {[%clk
0:00:37.1]} 47... Kf6 {[%clk 0:02:41.8]} 48. g5+ {[%clk 0:00:36]} 48... Ke6
{[%clk 0:02:41]} 49. h5 {[%clk 0:00:35.4]} 49... Kxd6 {[%clk 0:02:40.4]} 50. h6
{[%clk 0:00:35]} 50... Ke6 {[%clk 0:02:39.7]} 0-1

[Event "Live Chess"]
[Site "Chess.com"]
[Date "2024.06.02"]
[Round "-"]
[White "ProfPoisson"]
[Black "Duke_of_Bebington"]
[Result "0-1"]
[WhiteElo "1339"]
[BlackElo "1698"]
[TimeControl "300"]
[EndTime "0:47:42 PDT"]
[Termination "Duke_of_Bebington won by resignation"]

1. e4 {[%clk 0:04:54.3]} 1... g5 {[%clk 0:04:49.7]} 2. Nc3 {[%clk 0:04:45.3]}
2... Nc6 {[%clk 0:04:42]} 3. Bc4 {[%clk 0:04:43.2]} 3... Bg7 {[%clk 0:04:41]} 4.
Qf3 {[%clk 0:04:38.9]} 4... e6 {[%clk 0:04:37.8]} 5. d3 {[%clk 0:04:36.3]} 5...
Nge7 {[%clk 0:04:34.3]} 6. Bxg5 {[%clk 0:04:28.2]} 6... b6 {[%clk 0:04:28.4]} 7.
Bxe7 {[%clk 0:04:24.6]} 7... Qxe7 {[%clk 0:04:23.4]} 8. O-O-O {[%clk 0:04:23.1]}
8... Bb7 {[%clk 0:04:22.7]} 9. Nh3 {[%clk 0:04:16.5]} 9... Nd4 {[%clk
0:04:17.7]} 10. Qf4 {[%clk 0:04:03.1]} 10... Bh6 {[%clk 0:04:14.8]} 11. Ng5
{[%clk 0:03:49]} 11... Bxg5 {[%clk 0:04:13.4]} 12. Qxg5 {[%clk 0:03:45.8]} 12...
Qxg5+ {[%clk 0:04:12.1]} 0-1

[Event "Live Chess"]
[Site "Chess.com"]
[Date "2024.06.02"]
[Round "-"]
[White "NottheBishopSacrifice"]
[Black "elephantgerrald"]
[Result "1-0"]
[WhiteElo "2306"]
[BlackElo "822"]
[TimeControl "300"]
[EndTime "0:48:15 PDT"]
[Termination "NottheBishopSacrifice won by checkmate"]

1. Nf3 {[%clk 0:04:58.4]} 1... d5 {[%clk 0:04:55.7]} 2. e4 {[%clk 0:04:58.3]}
2... dxe4 {[%clk 0:04:53.7]} 3. Ng5 {[%clk 0:04:57.9]} 3... Nf6 {[%clk
0:04:50.5]} 4. Nc3 {[%clk 0:04:57.5]} 4... h6 {[%clk 0:04:49]} 5. Ngxe4 {[%clk
0:04:55.6]} 5... Nxe4 {[%clk 0:04:47.9]} 6. Nxe4 {[%clk 0:04:55.5]} 6... Qd5
{[%clk 0:04:46.5]} 7. Nc3 {[%clk 0:04:53.7]} 7... Qe5+ {[%clk 0:04:44.6]} 8. Qe2
{[%clk 0:04:52.2]} 8... Qxe2+ {[%clk 0:04:42.8]} 9. Bxe2 {[%clk 0:04:52.1]} 9...
e6 {[%clk 0:04:41.9]} 10. O-O {[%clk 0:04:51]} 10... Bb4 {[%clk 0:04:41.1]} 11.
Ne4 {[%clk 0:04:49.8]} 11... O-O {[%clk 0:04:39]} 12. c3 {[%clk 0:04:49.3]}
12... Bd6 {[%clk 0:04:36.2]} 13. d4 {[%clk 0:04:49.2]} 13... f5 {[%clk 0:04:33]}
14. Nxd6 {[%clk 0:04:46.2]} 14... cxd6 {[%clk 0:04:31.1]} 15. Bf4 {[%clk
0:04:45.8]} 15... Re8 {[%clk 0:04:28.7]} 16. Bxd6 {[%clk 0:04:44.3]} 16... Nc6
{[%clk 0:04:26.2]} 17. Bf3 {[%clk 0:04:43.5]} 17... Bd7 {[%clk 0:04:10.3]} 18.
Rfe1 {[%clk 0:04:42.2]} 18... Kf7 {[%clk 0:04:05.1]} 19. g4 {[%clk 0:04:28.8]}
19... g6 {[%clk 0:03:58.6]} 20. gxf5 {[%clk 0:04:25.4]} 20... gxf5 {[%clk
0:03:48.6]} 21. Bh5+ {[%clk 0:04:23.7]} 21... Kf6 {[%clk 0:03:43.7]} 22. Bxe8
{[%clk 0:04:23]} 22... Rxe8 {[%clk 0:03:41.8]} 23. Kf1 {[%clk 0:04:22.6]} 23...
Na5 {[%clk 0:03:34.8]} 24. Be5+ {[%clk 0:04:17.9]} 24... Kf7 {[%clk 0:03:32.7]}
25. Ke2 {[%clk 0:04:17.4]} 25... Bb5+ {[%clk 0:03:28.9]} 26. Kd2 {[%clk
0:04:14.8]} 26... Nc4+ {[%clk 0:03:27.5]} 27. Kc2 {[%clk 0:04:14.3]} 27... Ba4+
{[%clk 0:03:24.8]} 28. b3 {[%clk 0:04:12.7]} 28... Na3+ {[%clk 0:03:22.5]} 29.
Kb2 {[%clk 0:04:11.1]} 29... Nc4+ {[%clk 0:03:18.6]} 30. bxc4 {[%clk 0:04:09.8]}
30... Bc6 {[%clk 0:03:17.3]} 31. Rg1 {[%clk 0:04:09]} 31... Be4 {[%clk
0:03:13.9]} 32. Rg7+ {[%clk 0:04:04.6]} 32... Kf8 {[%clk 0:03:12.7]} 33. Rag1
{[%clk 0:04:03.6]} 33... f4 {[%clk 0:03:03.9]} 34. Rg8+ {[%clk 0:04:03.5]} 34...
Ke7 {[%clk 0:03:01.4]} 35. R1g7+ {[%clk 0:04:03.4]} 35... Kd8 {[%clk 0:02:59.7]}
36. Bc7+ {[%clk 0:04:00.7]} 36... Kc8 {[%clk 0:02:58.2]} 37. Rxe8# {[%clk
0:04:00.6]} 1-0

[Event "Live Chess"]
[Site "Chess.com"]
[Date "2024.06.02"]
[Round "-"]
[White "CheckThis4"]
[Black "silunn"]
[Result "1-0"]
[WhiteElo "2694"]
[BlackElo "2198"]
[TimeControl "300"]
[EndTime "0:48:58 PDT"]
[Termination "CheckThis4 won on time"]

1. d4 {[%clk 0:04:55]} 1... e6 {[%clk 0:04:58.4]} 2. e4 {[%clk 0:04:52.3]} 2...
d5 {[%clk 0:04:57.2]} 3. e5 {[%clk 0:04:43]} 3... c5 {[%clk 0:04:55.4]} 4. c3
{[%clk 0:04:41.8]} 4... Nc6 {[%clk 0:04:54.2]} 5. Nf3 {[%clk 0:04:40.9]} 5...
Qb6 {[%clk 0:04:51.2]} 6. Be2 {[%clk 0:04:25.4]} 6... cxd4 {[%clk 0:04:46.9]} 7.
cxd4 {[%clk 0:04:23.8]} 7... Nh6 {[%clk 0:04:45.7]} 8. Bxh6 {[%clk 0:04:17.9]}
8... gxh6 {[%clk 0:04:45.6]} 9. O-O {[%clk 0:04:16.4]} 9... Bg7 {[%clk
0:04:44.4]} 10. Nc3 {[%clk 0:04:00]} 10... a6 {[%clk 0:04:37.5]} 11. Re1 {[%clk
0:03:54.9]} 11... O-O {[%clk 0:04:34.4]} 12. Na4 {[%clk 0:03:46.9]} 12... Qa5
{[%clk 0:04:01.6]} 13. a3 {[%clk 0:03:41.3]} 13... f6 {[%clk 0:03:52.7]} 14.
exf6 {[%clk 0:03:32.4]} 14... Bxf6 {[%clk 0:03:49.4]} 15. Rc1 {[%clk 0:03:23]}
15... Bd7 {[%clk 0:03:10.8]} 16. Nc5 {[%clk 0:03:19.9]} 16... Qc7 {[%clk
0:03:02.8]} 17. Bf1 {[%clk 0:03:03.5]} 17... Rad8 {[%clk 0:02:34.2]} 18. Rxe6
{[%clk 0:02:17.5]} 18... Bxe6 {[%clk 0:02:34]} 19. Nxe6 {[%clk 0:02:16.2]} 19...
Qb6 {[%clk 0:02:27.5]} 20. b4 {[%clk 0:02:06.6]} 20... Rde8 {[%clk 0:02:04.1]}
21. Nxf8 {[%clk 0:02:05.1]} 21... Kxf8 {[%clk 0:01:58.3]} 22. Rc5 {[%clk
0:01:59.3]} 22... Qd8 {[%clk 0:01:39]} 23. Qb3 {[%clk 0:01:37.5]} 23... Ne7
{[%clk 0:01:29.3]} 24. Rc1 {[%clk 0:01:27.8]} 24... Ng6 {[%clk 0:01:12]} 25. Rc5
{[%clk 0:01:17.7]} 25... Ne7 {[%clk 0:01:10.3]} 26. Rc3 {[%clk 0:01:16.4]} 26...
Qd6 {[%clk 0:01:04.8]} 27. Re3 {[%clk 0:01:14.2]} 27... Nf5 {[%clk 0:01:01.9]}
28. Rxe8+ {[%clk 0:01:12.5]} 28... Kxe8 {[%clk 0:01:01.8]} 29. Qd3 {[%clk
0:01:11.1]} 29... Qf4 {[%clk 0:00:45.3]} 30. g3 {[%clk 0:01:04.7]} 30... Qe4
{[%clk 0:00:44.4]} 31. b5 {[%clk 0:00:58.9]} 31... Qxd3 {[%clk 0:00:40.5]} 32.
Bxd3 {[%clk 0:00:57.4]} 32... Nxd4 {[%clk 0:00:39.7]} 33. Nxd4 {[%clk
0:00:55.6]} 33... Bxd4 {[%clk 0:00:39.6]} 34. bxa6 {[%clk 0:00:55]} 34... bxa6
{[%clk 0:00:39.3]} 35. Bxa6 {[%clk 0:00:54.7]} 35... Bc5 {[%clk 0:00:38.4]} 36.
a4 {[%clk 0:00:53.6]} 36... Bb4 {[%clk 0:00:36.1]} 37. Bd3 {[%clk 0:00:53.5]}
37... Ke7 {[%clk 0:00:35.2]} 38. Bxh7 {[%clk 0:00:52.3]} 38... Kf6 {[%clk
0:00:33.6]} 39. Kf1 {[%clk 0:00:50.6]} 39... Ke5 {[%clk 0:00:33.1]} 40. Bd3
{[%clk 0:00:49.3]} 40... Kd4 {[%clk 0:00:32.6]} 41. Ke2 {[%clk 0:00:48.9]} 41...
Kc3 {[%clk 0:00:31.7]} 42. h4 {[%clk 0:00:47.4]} 42... Kd4 {[%clk 0:00:31.4]}
43. g4 {[%clk 0:00:46]} 43... Ke5 {[%clk 0:00:30.7]} 44. Ke3 {[%clk 0:00:43]}
44... Bc5+ {[%clk 0:00:29.8]} 45. Kf3 {[%clk 0:00:42.1]} 45... Bb4 {[%clk
0:00:29.3]} 46. Bb5 {[%clk 0:00:37.1]} 46... Ba5 {[%clk 0:00:28.3]} 47. Bd7
{[%clk 0:00:31.3]} 47... Bb6 {[%clk 0:00:27.6]} 48. g5 {[%clk 0:00:28.4]} 48...
hxg5 {[%clk 0:00:26.8]} 49. hxg5 {[%clk 0:00:28.3]} 49... Ba5 {[%clk 0:00:25.1]}
50. g6 {[%clk 0:00:27.4]} 50... Kf6 {[%clk 0:00:24.3]} 51. Be8 {[%clk
0:00:26.6]} 51... Bb6 {[%clk 0:00:23.7]} 52. Ke2 {[%clk 0:00:25.7]} 52... Bc5
{[%clk 0:00:21.1]} 53. f4 {[%clk 0:00:24.1]} 53... Bb6 {[%clk 0:00:19.6]} 54.
Kd3 {[%clk 0:00:23.7]} 54... Ke7 {[%clk 0:00:15.3]} 55. Bf7 {[%clk 0:00:23]}
55... Kf6 {[%clk 0:00:14.5]} 56. Kc3 {[%clk 0:00:21.2]} 56... Bc5 {[%clk
0:00:13.2]} 57. a5 {[%clk 0:00:19.9]} 57... Ba7 {[%clk 0:00:12.1]} 58. a6 {[%clk
0:00:19.2]} 58... Bb6 {[%clk 0:00:11.3]} 59. Kb4 {[%clk 0:00:18.1]} 59... Ba7
{[%clk 0:00:11.2]} 60. Kb5 {[%clk 0:00:16.2]} 60... Kg7 {[%clk 0:00:09.6]} 61.
f5 {[%clk 0:00:15]} 61... Kf6 {[%clk 0:00:08.6]} 62. Bxd5 {[%clk 0:00:14.6]}
62... Kg7 {[%clk 0:00:06.9]} 63. Kc6 {[%clk 0:00:13.8]} 63... Kf6 {[%clk
0:00:06.8]} 64. Kb7 {[%clk 0:00:13.3]} 64... Be3 {[%clk 0:00:06.3]} 65. a7
{[%clk 0:00:12.6]} 65... Bxa7 {[%clk 0:00:05.9]} 66. Kxa7 {[%clk 0:00:12.5]}
66... Kg7 {[%clk 0:00:05.4]} 67. Kb7 {[%clk 0:00:11.6]} 67... Kf6 {[%clk
0:00:05.3]} 68. Kc6 {[%clk 0:00:11.3]} 68... Kg7 {[%clk 0:00:05.2]} 69. Kd6
{[%clk 0:00:11]} 69... Kf6 {[%clk 0:00:05.1]} 70. Be6 {[%clk 0:00:10.2]} 70...
Kg7 {[%clk 0:00:04.2]} 71. Ke7 {[%clk 0:00:09.6]} 71... Kh8 {[%clk 0:00:03.6]}
72. Bd7 {[%clk 0:00:08.5]} 72... Kg7 {[%clk 0:00:03.1]} 73. f6+ {[%clk 0:00:08]}
73... Kxg6 {[%clk 0:00:02.6]} 74. f7 {[%clk 0:00:07.9]} 74... Kg5 {[%clk
0:00:02.2]} 75. f8=Q {[%clk 0:00:07.5]} 75... Kh4 {[%clk 0:00:01]} 76. Qg7
{[%clk 0:00:06]} 76... Kh5 {[%clk 0:00:00.3]} 77. Kf6 {[%clk 0:00:05.3]} 1-0

[Event "Live Chess"]
[Site "Chess.com"]
[Date "2024.06.02"]
[Round "-"]
[White "KeithArkell"]
[Black "JanMur7"]
[Result "1/2-1/2"]
[WhiteElo "2411"]
[BlackElo "2254"]
[TimeControl "300"]
[EndTime "0:49:53 PDT"]
[Termination "Game drawn by agreement"]

1. d4 {[%clk 0:04:57.9]} 1... d5 {[%clk 0:04:57.3]} 2. Nf3 {[%clk 0:04:57]} 2...
Nf6 {[%clk 0:04:55.8]} 3. c4 {[%clk 0:04:56.4]} 3... e6 {[%clk 0:04:55]} 4. cxd5
{[%clk 0:04:55.3]} 4... exd5 {[%clk 0:04:53.2]} 5. Nc3 {[%clk 0:04:55]} 5... Be7
{[%clk 0:04:47.9]} 6. Bg5 {[%clk 0:04:53.3]} 6... h6 {[%clk 0:04:47.1]} 7. Bxf6
{[%clk 0:04:52.2]} 7... Bxf6 {[%clk 0:04:45.9]} 8. b4 {[%clk 0:04:51.7]} 8... a5
{[%clk 0:04:40.8]} 9. b5 {[%clk 0:04:50.7]} 9... O-O {[%clk 0:04:37.3]} 10. e3
{[%clk 0:04:49.8]} 10... Bg4 {[%clk 0:04:29.6]} 11. Be2 {[%clk 0:04:48]} 11...
c6 {[%clk 0:04:26.5]} 12. bxc6 {[%clk 0:04:47.3]} 12... bxc6 {[%clk 0:04:26.4]}
13. Rc1 {[%clk 0:04:46.1]} 13... Nd7 {[%clk 0:04:20.9]} 14. Na4 {[%clk
0:04:45.1]} 14... Rc8 {[%clk 0:04:19.1]} 15. O-O {[%clk 0:04:43.8]} 15... Be7
{[%clk 0:04:15.6]} 16. Ne1 {[%clk 0:04:36.4]} 16... Bxe2 {[%clk 0:04:11.7]} 17.
Qxe2 {[%clk 0:04:35.5]} 17... c5 {[%clk 0:04:10.9]} 18. dxc5 {[%clk 0:04:34.8]}
18... Nxc5 {[%clk 0:04:09.7]} 19. Nxc5 {[%clk 0:04:33.8]} 19... Rxc5 {[%clk
0:04:08.6]} 20. Nf3 {[%clk 0:04:32.2]} 20... Qd6 {[%clk 0:03:58.5]} 21. Rxc5
{[%clk 0:04:30.9]} 21... Qxc5 {[%clk 0:03:58.1]} 22. Rd1 {[%clk 0:04:30.4]}
22... Rd8 {[%clk 0:03:54.6]} 23. g3 {[%clk 0:04:28.9]} 23... Bf6 {[%clk
0:03:53.5]} 24. Qd3 {[%clk 0:04:27.8]} 24... Rd6 {[%clk 0:03:37.1]} 25. Kg2
{[%clk 0:04:26.5]} 25... g6 {[%clk 0:03:33]} 26. Rd2 {[%clk 0:04:18.7]} 26...
Qb4 {[%clk 0:03:18.2]} 27. Rc2 {[%clk 0:04:05.9]} 27... d4 {[%clk 0:03:15.6]}
28. e4 {[%clk 0:04:03.3]} 28... Re6 {[%clk 0:03:06.5]} 29. Rc4 {[%clk
0:03:44.4]} 29... Qb7 {[%clk 0:03:01.1]} 30. Rc5 {[%clk 0:03:27.5]} 30... Qxe4
{[%clk 0:02:31.9]} 31. Qxe4 {[%clk 0:03:24.7]} 31... Rxe4 {[%clk 0:02:31.8]} 32.
Rxa5 {[%clk 0:03:23.7]} 32... Re2 {[%clk 0:02:30.8]} 33. a4 {[%clk 0:02:50.5]}
33... Ra2 {[%clk 0:02:28.2]} 34. Ra6 {[%clk 0:02:44]} 34... Kg7 {[%clk
0:02:25.9]} 35. a5 {[%clk 0:02:43.5]} 35... d3 {[%clk 0:02:17.5]} 36. Rd6 {[%clk
0:02:42.5]} 36... Rxa5 {[%clk 0:02:14.5]} 37. Rxd3 {[%clk 0:02:41.7]} 37... h5
{[%clk 0:02:13.4]} 38. Nd2 {[%clk 0:02:39.9]} 38... Ra4 {[%clk 0:02:09.1]}
1/2-1/2

[Event "Live Chess"]
[Site "Chess.com"]
[Date "2024.06.02"]
[Round "-"]
[White "Hacker_2009"]
[Black "MagnersCarlsberg2870"]
[Result "1-0"]
[WhiteElo "2237"]
[BlackElo "1821"]
[TimeControl "300"]
[EndTime "0:50:23 PDT"]
[Termination "Hacker_2009 won by resignation"]

1. e4 {[%clk 0:04:53.9]} 1... d5 {[%clk 0:04:57.7]} 2. exd5 {[%clk 0:04:52.1]}
2... Nf6 {[%clk 0:04:56.7]} 3. d4 {[%clk 0:04:49.9]} 3... Qxd5 {[%clk
0:04:55.3]} 4. c4 {[%clk 0:04:32.4]} 4... Qe4+ {[%clk 0:04:41.5]} 5. Ne2 {[%clk
0:04:29.2]} 5... Bf5 {[%clk 0:04:33.6]} 6. Nc3 {[%clk 0:04:26.1]} 6... Qc6
{[%clk 0:04:14]} 7. Ng3 {[%clk 0:04:20.8]} 7... Bg6 {[%clk 0:04:08.9]} 8. c5
{[%clk 0:04:18.8]} 8... a6 {[%clk 0:04:05.1]} 9. Be3 {[%clk 0:04:14.8]} 9...
Nbd7 {[%clk 0:04:00.1]} 10. d5 {[%clk 0:04:11.1]} 10... Nxd5 {[%clk 0:03:46.8]}
11. Qxd5 {[%clk 0:04:08.5]} 11... e6 {[%clk 0:03:38.7]} 12. Qxc6 {[%clk
0:04:06.3]} 12... bxc6 {[%clk 0:03:37.6]} 13. Be2 {[%clk 0:04:04.1]} 13... Rb8
{[%clk 0:03:36.4]} 14. b3 {[%clk 0:03:50.8]} 14... Bxc5 {[%clk 0:03:34.2]} 15.
Bxc5 {[%clk 0:03:49.2]} 15... Nxc5 {[%clk 0:03:33.1]} 16. O-O {[%clk 0:03:47.9]}
16... O-O {[%clk 0:03:30]} 17. Rac1 {[%clk 0:03:45.4]} 17... Nd3 {[%clk
0:03:26]} 18. Bxd3 {[%clk 0:03:43.4]} 18... Bxd3 {[%clk 0:03:24.2]} 19. Rfd1
{[%clk 0:03:42.7]} 19... Bg6 {[%clk 0:03:17.8]} 20. Rd7 {[%clk 0:03:40]} 20...
Rfd8 {[%clk 0:03:13.7]} 21. Rcd1 {[%clk 0:03:37.3]} 21... Rxd7 {[%clk
0:03:04.8]} 22. Rxd7 {[%clk 0:03:37.2]} 22... h6 {[%clk 0:03:04]} 23. Rxc7
{[%clk 0:03:35.4]} 23... Rd8 {[%clk 0:03:03.3]} 24. Rxc6 {[%clk 0:03:32.3]}
24... Rd2 {[%clk 0:02:58.9]} 25. h3 {[%clk 0:03:30.4]} 25... Rc2 {[%clk
0:02:56.8]} 26. Rc5 {[%clk 0:03:09.9]} 26... Rc1+ {[%clk 0:02:51.8]} 27. Kh2
{[%clk 0:03:07.5]} 27... Rc2 {[%clk 0:02:48.3]} 28. a4 {[%clk 0:03:05.8]} 28...
Rxf2 {[%clk 0:02:46.2]} 29. Ra5 {[%clk 0:03:00.1]} 29... Rc2 {[%clk 0:02:44.4]}
30. Nce4 {[%clk 0:02:54.7]} 30... Rb2 {[%clk 0:02:39.8]} 31. Nc5 {[%clk
0:02:41.5]} 31... f5 {[%clk 0:02:30]} 32. Rxa6 {[%clk 0:02:32.8]} 32... e5
{[%clk 0:02:22.8]} 33. Rxg6 {[%clk 0:02:27.8]} 1-0

[Event "Live Chess"]
[Site "Chess.com"]
[Date "2024.06.02"]
[Round "-"]
[White "Ferrarifan27"]
[Black "RG_ChessLegend"]
[Result "1-0"]
[WhiteElo "2122"]
[BlackElo "1510"]
[TimeControl "300"]
[EndTime "0:50:26 PDT"]
[Termination "Ferrarifan27 won by resignation"]

1. e4 {[%clk 0:04:58.8]} 1... c5 {[%clk 0:04:58.9]} 2. Nf3 {[%clk 0:04:57.4]}
2... d6 {[%clk 0:04:58.2]} 3. d4 {[%clk 0:04:54.9]} 3... cxd4 {[%clk 0:04:58.1]}
4. Nxd4 {[%clk 0:04:53.3]} 4... Nf6 {[%clk 0:04:57.8]} 5. Nc3 {[%clk 0:04:51.7]}
5... a6 {[%clk 0:04:57.4]} 6. Bg5 {[%clk 0:04:50.1]} 6... e6 {[%clk 0:04:56.9]}
7. f4 {[%clk 0:04:48.8]} 7... Be7 {[%clk 0:04:56.6]} 8. Qf3 {[%clk 0:04:47.5]}
8... Qc7 {[%clk 0:04:56.3]} 9. O-O-O {[%clk 0:04:46]} 9... h6 {[%clk 0:04:42.8]}
10. Bh4 {[%clk 0:04:43.4]} 10... Nc6 {[%clk 0:04:37.8]} 11. g4 {[%clk
0:04:38.7]} 11... Nxd4 {[%clk 0:04:27.7]} 12. Rxd4 {[%clk 0:04:36.7]} 12... e5
{[%clk 0:04:26.9]} 13. Rc4 {[%clk 0:04:33.8]} 13... Qb6 {[%clk 0:04:11.8]} 14.
Bxf6 {[%clk 0:04:32.4]} 14... Bxf6 {[%clk 0:04:01.2]} 15. Nd5 {[%clk 0:04:31.3]}
15... Qd8 {[%clk 0:03:56.3]} 16. Nc7+ {[%clk 0:04:30]} 16... Kf8 {[%clk
0:03:53.4]} 17. Nxa8 {[%clk 0:04:28.8]} 17... exf4 {[%clk 0:03:51.2]} 18. Qb3
{[%clk 0:03:58.2]} 18... Be6 {[%clk 0:03:44.9]} 19. Qxb7 {[%clk 0:03:54.8]}
19... Bxc4 {[%clk 0:03:41.6]} 20. Bxc4 {[%clk 0:03:53.7]} 20... Qe8 {[%clk
0:03:26.4]} 21. Nc7 {[%clk 0:03:46]} 21... Qe7 {[%clk 0:03:20.2]} 22. Qc8+
{[%clk 0:03:44.1]} 22... Qd8 {[%clk 0:03:18.9]} 23. Qxd8+ {[%clk 0:03:43.1]}
23... Bxd8 {[%clk 0:03:17.9]} 24. Nxa6 {[%clk 0:03:42.2]} 24... f6 {[%clk
0:03:13.9]} 25. Rd1 {[%clk 0:03:37.3]} 25... Be7 {[%clk 0:03:09.6]} 26. Nb4
{[%clk 0:03:27.8]} 26... g5 {[%clk 0:03:07]} 27. Nc6 {[%clk 0:03:26.1]} 27...
Rh7 {[%clk 0:03:03.2]} 28. Nxe7 {[%clk 0:03:23.8]} 28... Rxe7 {[%clk 0:03:03.1]}
29. Rxd6 {[%clk 0:03:20.8]} 29... Rxe4 {[%clk 0:03:01.9]} 30. Rxf6+ {[%clk
0:03:19]} 30... Ke7 {[%clk 0:02:57.9]} 31. Rf7+ {[%clk 0:03:17.9]} 31... Ke8
{[%clk 0:02:56.8]} 32. Bb3 {[%clk 0:03:10]} 1-0